bitfinex-derivatives/quotes_BNBF0:USTF0_20250617
["timestamp","ask_amount","ask_price","bid_price","bid_amount"]
[1750183965386,1.04946405,643.41,642.98,1.169]
[1750183965589,1.04946405,643.4,642.98,1.169]
[1750183965785,1.04946405,643.39,642.98,1.169]
[1750183965985,1.04946405,643.38,642.98,1.169]
[1750183966190,1.04946405,643.37,642.98,1.169]
[1750183966386,1.04946405,643.36,642.98,1.169]
[1750183966585,1.04946405,643.35,642.98,1.169]
[1750183966789,1.04946405,643.34,642.98,1.169]
[1750183966986,1.04946405,643.33,642.98,1.169]
[1750183967188,1.04946405,643.32,642.98,1.169]
[1750183967390,1.04946405,643.31,642.98,1.169]
[1750183967590,1.04946405,643.3,642.98,1.169]
[1750183967892,1.04946405,643.29,642.98,1.169]
[1750183968191,1.04946405,643.28,642.98,1.169]
[1750183968391,1.04946405,643.27,642.98,1.169]
[1750183968687,1.16078126,643.49,642.98,1.169]
[1750183968988,1.04830974,643.48,642.98,1.169]
[1750183969191,1.04830974,643.47,642.99,0.872]
[1750183969390,1.04830974,643.46,642.99,0.872]
[1750183969591,1.04830974,643.45,642.99,0.872]
[1750183969892,1.04830974,643.44,642.99,0.872]
[1750183970088,1.04830974,643.43,642.99,0.872]
[1750183970387,1.04830974,643.42,642.99,0.872]
[1750183970591,1.04830974,643.41,642.99,0.872]
[1750183970789,1.04830974,643.4,642.99,0.872]
[1750183971088,1.04830974,643.39,642.99,0.872]
[1750183971291,1.04830974,643.38,642.99,0.872]
[1750183971489,1.04830974,643.37,642.99,0.872]
[1750183971692,1.04830974,643.36,642.99,0.872]
[1750183971989,1.04830974,643.35,642.99,0.872]
[1750183972290,1.04830974,643.34,643.0,0.995]
[1750183972494,1.16078126,643.67,643.0,0.995]
[1750183972693,1.0477652,643.66,643.0,0.995]
[1750183972988,1.0477652,643.65,643.0,0.995]
[1750183973192,1.0477652,643.64,643.0,0.995]
[1750183973392,1.0477652,643.63,643.0,0.995]
[1750183973593,1.0477652,643.62,643.0,0.995]
[1750183973890,1.0477652,643.61,643.0,0.995]
[1750183974092,1.0477652,643.6,643.0,0.995]
[1750183974394,1.0477652,643.59,643.0,0.995]
[1750183974594,1.0477652,643.58,643.0,0.995]
[1750183974893,1.0477652,643.57,643.0,0.995]
[1750183975093,1.0477652,643.56,643.0,0.995]
[1750183975397,1.0477652,643.55,643.0,0.995]
[1750183975590,1.16078126,643.67,643.0,0.995]
[1750183975591,1.0477652,643.54,643.0,0.995]
[1750183975789,1.0477652,643.53,643.0,0.995]
[1750183975988,1.0477652,643.52,643.0,0.995]
[1750183976190,1.0477652,643.51,643.0,0.995]
[1750183976388,1.0477652,643.5,643.0,0.995]
[1750183976590,1.0477652,643.49,643.0,0.995]
[1750183976794,1.0477652,643.48,643.0,0.995]
[1750183976994,1.0477652,643.47,643.0,0.995]
[1750183977290,1.0477652,643.46,643.0,0.995]
[1750183977491,1.0477652,643.45,643.0,0.995]
[1750183977689,1.16078126,643.89,643.0,0.995]
[1750183977896,1.04663512,643.88,643.0,0.995]
[1750183978095,1.04663512,643.87,643.01,1.031]
[1750183978295,1.04663512,643.86,643.01,1.031]
[1750183978495,1.04663512,643.85,643.01,1.031]
[1750183978691,1.04663512,643.84,643.01,1.031]
[1750183978991,1.04663512,643.83,643.01,1.031]
[1750183979192,1.04663512,643.82,643.01,1.031]
[1750183979392,1.04663512,643.81,643.01,1.031]
[1750183979694,0.27051608,643.95,643.01,1.031]
[1750183979695,1.04663512,643.8,643.01,1.031]
[1750183979895,1.04663512,643.79,643.01,1.031]
[1750183980096,1.04663512,643.78,643.01,1.031]
[1750183980396,1.04663512,643.77,643.01,1.031]
[1750183980691,1.04663512,643.76,643.01,1.031]
[1750183980895,1.04663512,643.75,643.01,1.031]
[1750183981093,1.04663512,643.74,643.01,1.031]
[1750183981393,1.04663512,643.73,643.01,1.031]
[1750183981696,1.16078126,643.92,643.01,1.031]
[1750183981697,1.04663512,643.72,643.01,1.031]
[1750183981993,1.04663512,643.71,643.01,1.031]
[1750183982293,1.04663512,643.7,643.01,1.031]
[1750183982492,1.04663512,643.69,643.01,1.031]
[1750183982694,1.04663512,643.68,643.01,1.031]
[1750183982902,1.04663512,643.67,643.01,1.031]
[1750183983098,1.04663512,643.66,643.01,1.031]
[1750183983295,1.04663512,643.65,643.01,1.031]
[1750183983497,1.04663512,643.64,643.01,1.031]
[1750183983693,1.04663512,643.63,643.01,1.031]
[1750183983895,1.04663512,643.62,643.01,1.031]
[1750183984097,1.04663512,643.61,643.01,1.031]
[1750183984298,1.04663512,643.6,643.01,1.031]
[1750183984498,1.04663512,643.59,643.01,1.031]
[1750183984697,1.04663512,643.58,643.01,1.031]
[1750183984896,1.04663512,643.57,643.01,1.031]
[1750183985201,1.16078126,643.91,643.01,1.031]
[1750183985501,1.04667373,643.9,643.01,1.031]
[1750183985700,1.04667373,643.89,643.01,1.031]
[1750183985900,1.04667373,643.88,643.01,1.031]
[1750183986197,1.04667373,643.87,643.01,1.031]
[1750183986401,1.04667373,643.86,643.01,1.031]
[1750183986697,1.04667373,643.85,643.01,1.031]
[1750183986901,1.04667373,643.84,643.01,1.031]
[1750183987098,1.04667373,643.83,643.01,1.031]
[1750183987397,1.04667373,643.82,643.01,1.031]
[1750183987600,1.04667373,643.81,643.01,1.031]
[1750183987800,1.04667373,643.8,643.01,1.031]
[1750183987999,1.04667373,643.79,643.01,1.031]
[1750183988203,1.04667373,643.78,643.01,1.031]
[1750183988400,1.04667373,643.77,643.01,1.031]
[1750183988599,1.04667373,643.76,643.01,1.031]
[1750183988898,1.04667373,643.75,643.01,1.031]
[1750183989097,1.04667373,643.74,643.01,1.031]
[1750183989304,1.04667373,643.73,643.01,1.031]
[1750183989501,1.04667373,643.72,643.01,1.031]
[1750183989701,1.04667373,643.71,643.01,1.031]
[1750183990000,1.04667373,643.7,643.01,1.031]
[1750183990205,1.04667373,643.69,643.01,1.031]
[1750183990405,1.04667373,643.68,643.01,1.031]
[1750183990603,1.04667373,643.67,643.01,1.031]
[1750183990808,1.04667373,643.66,643.01,1.031]
[1750183991010,1.16078126,643.89,643.01,1.031]
[1750183991208,1.04666047,643.88,643.01,1.031]
[1750183991405,1.04666047,643.87,643.01,1.031]
[1750183991606,1.04666047,643.86,643.01,1.031]
[1750183991805,1.04666047,643.85,643.01,1.031]
[1750183992111,1.04666047,643.84,643.01,1.031]
[1750183992305,1.04666047,643.83,643.01,1.031]
[1750183992506,1.04666047,643.82,643.01,1.031]
[1750183992807,1.04666047,643.81,643.01,1.031]
[1750183993008,1.04666047,643.8,643.01,1.031]
[1750183993206,1.04666047,643.79,643.01,1.031]
[1750183993407,1.04666047,643.78,643.01,1.031]
[1750183993609,1.04666047,643.77,643.01,1.031]
[1750183993912,1.04666047,643.76,643.01,1.031]
[1750183994108,1.04666047,643.75,643.01,1.031]
[1750183994311,1.04666047,643.74,643.01,1.031]
[1750183994512,1.04666047,643.73,643.01,1.031]
[1750183994715,1.04666047,643.72,643.01,1.031]
[1750183995016,1.04666047,643.71,643.01,1.031]
[1750183995218,1.04666047,643.7,643.01,1.031]
[1750183995412,1.04666047,643.69,643.01,1.031]
[1750183995712,1.04666047,643.68,643.01,1.031]
[1750183995914,1.16078126,643.9,643.01,1.031]
[1750183996216,1.04656504,643.89,643.01,1.031]
[1750183996416,1.16078126,643.9,643.01,1.031]
[1750183996417,1.04656504,643.88,643.01,1.031]
[1750183996712,1.04656504,643.87,643.01,1.031]
[1750183996918,1.04656504,643.86,643.01,1.031]
[1750183997118,1.04656504,643.85,643.01,1.031]
[1750183997415,1.04656504,643.84,643.01,1.031]
[1750183997617,1.04656504,643.83,643.01,1.031]
[1750183997817,1.04656504,643.82,643.01,1.031]
[1750183998014,1.04656504,643.81,643.01,1.031]
[1750183998315,1.04656504,643.8,643.01,1.031]
[1750183998517,1.04656504,643.79,643.01,1.031]
[1750183998715,1.04656504,643.78,643.01,1.031]
[1750183998913,1.04656504,643.77,643.01,1.031]
[1750183999118,1.04656504,643.76,643.01,1.031]
[1750183999414,1.04656504,643.75,643.01,1.031]
[1750183999617,1.04656504,643.74,643.01,1.031]
[1750183999914,1.04656504,643.73,643.01,1.031]
[1750184000114,1.04656504,643.72,643.01,1.031]
[1750184000318,1.16078126,643.92,643.01,1.031]
[1750184000319,1.04656504,643.71,643.01,1.031]
[1750184000518,1.04656504,643.7,643.01,1.031]
[1750184000715,1.04656504,643.69,643.01,1.031]
[1750184001015,1.04656504,643.68,643.01,1.031]
[1750184001214,0.27051608,643.95,643.01,1.031]
[1750184001415,1.04575152,643.94,643.01,1.031]
[1750184001620,1.04575152,643.93,643.01,1.031]
[1750184001819,1.04575152,643.92,643.01,1.031]
[1750184002020,1.04575152,643.91,643.01,1.031]
[1750184002217,1.04575152,643.9,643.01,1.031]
[1750184002420,0.27051608,643.95,643.01,1.031]
[1750184002421,1.04575152,643.89,643.01,1.031]
[1750184002619,1.04575152,643.88,643.01,1.031]
[1750184002816,1.04575152,643.87,643.01,1.031]
[1750184003119,1.04575152,643.86,643.01,1.031]
[1750184003316,1.04575152,643.85,643.01,1.031]
[1750184003518,1.04575152,643.84,643.01,1.031]
[1750184003715,1.04575152,643.83,643.01,1.031]
[1750184003919,1.04575152,643.82,643.01,1.031]
[1750184004120,1.04575152,643.81,643.01,1.031]
[1750184004320,1.04575152,643.8,643.01,1.031]
[1750184004520,1.04575152,643.79,643.01,1.031]
[1750184004720,1.04575152,643.78,643.01,1.031]
[1750184005015,1.04575152,643.77,643.01,1.031]
[1750184005217,1.04575152,643.76,643.01,1.031]
[1750184005416,1.04575152,643.75,643.01,1.031]
[1750184005615,1.04575152,643.74,643.01,1.031]
[1750184005820,1.04575152,643.73,643.01,1.031]
[1750184006118,1.04575152,643.72,643.02,0.31103231]
[1750184006418,1.04575152,643.71,643.02,0.31103231]
[1750184006618,1.04575152,643.7,643.02,0.31103231]
[1750184006918,0.27051608,643.95,643.02,0.31103231]
[1750184007124,1.045929,643.94,643.02,0.31103231]
[1750184007323,1.045929,643.93,643.02,0.31103231]
[1750184007522,1.045929,643.92,643.02,0.31103231]
[1750184007721,1.045929,643.91,643.02,0.31103231]
[1750184007920,1.045929,643.9,643.02,0.31103231]
[1750184008120,1.045929,643.89,643.02,0.31103231]
[1750184008423,1.045929,643.88,643.02,0.31103231]
[1750184008617,1.045929,643.87,643.02,0.31103231]
[1750184008820,1.045929,643.86,643.02,0.31103231]
[1750184009019,1.045929,643.85,643.02,0.31103231]
[1750184009218,1.045929,643.84,643.02,0.31103231]
[1750184009423,1.045929,643.83,643.02,0.31103231]
[1750184009622,1.045929,643.82,643.02,0.31103231]
[1750184009820,1.045929,643.81,643.02,0.31103231]
[1750184010024,1.045929,643.8,643.02,0.31103231]
[1750184010221,1.045929,643.79,643.02,0.31103231]
[1750184010421,1.045929,643.78,643.02,0.31103231]
[1750184010726,0.27051608,643.95,643.02,0.31103231]
[1750184010923,1.0452949,643.94,643.03,0.823]
[1750184011223,1.0452949,643.93,643.04,0.31102264]
[1750184011421,1.0452949,643.92,643.04,0.31102264]
[1750184011625,1.0452949,643.91,643.04,0.31102264]
[1750184011828,1.0452949,643.9,643.05,0.927]
[1750184012023,1.0452949,643.89,643.05,0.927]
[1750184012223,1.0452949,643.88,643.05,0.927]
[1750184012423,1.0452949,643.87,643.05,0.927]
[1750184012627,1.0452949,643.86,643.05,0.927]
[1750184012924,1.0452949,643.85,643.05,0.927]
[1750184013124,1.0452949,643.84,643.05,0.927]
[1750184013327,1.0452949,643.83,643.05,0.927]
[1750184013527,1.0452949,643.82,643.05,0.927]
[1750184013822,1.0452949,643.81,643.05,0.927]
[1750184014021,1.0452949,643.8,643.05,0.927]
[1750184014227,1.16078126,644.01,643.05,0.927]
[1750184014526,1.04483998,644.0,643.05,0.927]
[1750184014727,1.04483998,643.99,643.05,0.927]
[1750184015024,1.04483998,643.98,643.05,1.2380178]
[1750184015225,1.04483998,643.97,643.05,1.2380178]
[1750184015428,1.04483998,643.96,643.06,0.31101296]
[1750184015625,1.04483998,643.95,643.06,0.31101296]
[1750184015929,1.04483998,643.94,643.06,0.31101296]
[1750184016128,1.04483998,643.93,643.06,0.31101296]
[1750184016426,1.04483998,643.92,643.06,0.31101296]
[1750184016624,1.04483998,643.91,643.06,0.31101296]
[1750184016823,1.04483998,643.9,643.06,0.31101296]
[1750184017027,1.04483998,643.89,643.06,0.31101296]
[1750184017227,1.04483998,643.88,643.06,0.31101296]
[1750184017426,1.04483998,643.87,643.06,0.31101296]
[1750184017625,1.04483998,643.86,643.06,0.31101296]
[1750184017930,1.04483998,643.85,643.06,0.31101296]
[1750184018227,1.04483998,643.84,643.06,0.31101296]
[1750184018426,1.04483998,643.83,643.06,0.31101296]
[1750184018629,1.04483998,643.82,643.06,0.31101296]
[1750184018828,1.04460448,643.81,643.06,0.31101296]
[1750184019033,0.27035636,644.04,643.06,0.31101296]
[1750184019327,1.04441033,644.03,643.06,0.31101296]
[1750184019526,1.04441033,644.02,643.06,0.31101296]
[1750184019731,1.04441033,644.01,643.06,0.31101296]
[1750184019929,1.04441033,644.0,643.06,0.31101296]
[1750184020228,1.04441033,643.99,643.06,0.31101296]
[1750184020428,1.04441033,643.98,643.06,0.31101296]
[1750184020631,1.04441033,643.97,643.06,0.31101296]
[1750184020832,0.27035636,644.04,643.06,0.31101296]
[1750184020833,1.04441033,643.96,643.06,0.31101296]
[1750184021031,1.04441033,643.95,643.06,0.31101296]
[1750184021231,1.04441033,643.94,643.06,0.31101296]
[1750184021430,1.04441033,643.93,643.06,0.31101296]
[1750184021629,1.04441033,643.92,643.06,0.31101296]
[1750184021932,1.04441033,643.91,643.06,0.31101296]
[1750184022129,1.04441033,643.9,643.06,0.31101296]
[1750184022333,1.04441033,643.89,643.06,0.31101296]
[1750184022629,1.04441033,643.88,643.06,0.31101296]
[1750184022828,0.27035636,644.04,643.06,0.31101296]
[1750184023128,1.04446235,644.03,643.06,0.31101296]
[1750184023329,1.04446235,644.02,643.06,0.31101296]
[1750184023529,1.04446235,644.01,643.06,0.31101296]
[1750184023732,1.04446235,644.0,643.06,0.31101296]
[1750184023930,1.04446235,643.99,643.06,0.31101296]
[1750184024230,1.04446235,643.98,643.06,0.31101296]
[1750184024434,1.04446235,643.97,643.06,0.31101296]
[1750184024630,1.04446235,643.96,643.06,0.31101296]
[1750184024931,1.04446235,643.95,643.06,0.31101296]
[1750184025130,1.04446235,643.94,643.06,0.31101296]
[1750184025331,1.04446235,643.93,643.06,0.31101296]
[1750184025530,1.04446235,643.92,643.06,0.31101296]
[1750184025732,1.04446235,643.91,643.06,0.31101296]
[1750184025933,1.04446235,643.9,643.06,0.31101296]
[1750184026130,1.04446235,643.89,643.06,0.31101296]
[1750184026334,1.04446235,643.88,643.06,0.31101296]
[1750184026535,1.04446235,643.87,643.06,0.31101296]
[1750184026736,1.04446235,643.86,643.06,0.31101296]
[1750184027035,1.04446235,643.85,643.06,0.31101296]
[1750184027235,0.27035636,644.04,643.06,0.31101296]
[1750184027531,1.0455424,644.03,643.06,0.31101296]
[1750184027732,1.0455424,644.02,643.06,0.31101296]
[1750184027929,1.0455424,644.01,643.06,0.31101296]
[1750184028136,1.0455424,644.0,643.06,0.31101296]
[1750184028335,1.0455424,643.99,643.06,0.31101296]
[1750184028536,1.0455424,643.98,643.06,0.31101296]
[1750184028736,1.0455424,643.97,643.06,0.31101296]
[1750184028937,1.0455424,643.96,643.06,0.31101296]
[1750184029130,1.0455424,643.95,643.06,0.31101296]
[1750184029337,1.0455424,643.94,643.06,2.62505251]
[1750184029534,1.0455424,643.93,643.06,2.62505251]
[1750184029733,1.0455424,643.92,643.07,1.028]
[1750184029935,1.0455424,643.91,643.07,1.028]
[1750184030238,1.0455424,643.9,643.07,1.028]
[1750184030539,1.0455424,643.89,643.07,1.028]
[1750184030835,1.0455424,643.88,643.07,1.028]
[1750184031034,1.0455424,643.87,643.07,1.028]
[1750184031239,1.0455424,643.86,643.07,1.028]
[1750184031439,1.0455424,643.85,643.07,1.028]
[1750184031637,1.0455424,643.84,643.07,1.028]
[1750184031840,1.0455424,643.83,643.07,1.028]
[1750184032135,1.0455424,643.82,643.07,1.028]
[1750184032339,1.0455424,643.81,643.08,1.454]
[1750184032539,1.0455424,643.8,643.08,1.454]
[1750184032739,1.0455424,643.79,643.08,1.454]
[1750184032933,1.0455424,643.78,643.08,1.454]
[1750184033140,1.0455424,643.77,643.08,1.454]
[1750184033334,1.0455424,643.76,643.08,1.454]
[1750184033538,0.27035636,644.04,643.08,1.454]
[1750184033834,1.04761685,644.03,643.08,1.454]
[1750184034037,1.04761685,644.02,643.08,1.454]
[1750184034238,1.04761685,644.01,643.08,1.454]
[1750184034436,1.04761685,644.0,643.08,1.454]
[1750184034742,1.04761685,643.99,643.08,1.454]
[1750184035038,1.04761685,643.98,643.08,1.76500329]
[1750184035236,1.04761685,643.97,643.08,1.76500329]
[1750184035438,1.04761685,643.96,643.08,1.76500329]
[1750184035637,1.04761685,643.95,643.09,0.31099846]
[1750184035942,1.04761685,643.94,643.09,0.31099846]
[1750184036137,1.04761685,643.93,643.09,0.31099846]
[1750184036341,1.04761685,643.92,643.09,0.31099846]
[1750184036641,1.04761685,643.91,643.09,0.31099846]
[1750184036942,1.04761685,643.9,643.09,0.31099846]
[1750184037140,1.04761685,643.89,643.09,0.31099846]
[1750184037341,1.04761685,643.88,643.09,0.31099846]
[1750184037545,1.04761685,643.87,643.09,0.31099846]
[1750184037741,1.04761685,643.86,643.09,0.31099846]
[1750184037945,1.04761685,643.85,643.09,0.31099846]
[1750184038141,1.04761685,643.84,643.09,0.31099846]
[1750184038445,1.04761685,643.83,643.09,0.31099846]
[1750184038745,1.04761685,643.82,643.09,0.31099846]
[1750184038942,1.04761685,643.81,643.09,0.31099846]
[1750184039143,1.04761685,643.8,643.09,0.31099846]
[1750184039343,1.04761685,643.79,643.09,0.31099846]
[1750184039546,1.04761685,643.78,643.09,0.31099846]
[1750184039849,1.04863793,643.77,643.09,0.31099846]
[1750184040047,1.04863793,643.76,643.09,0.31099846]
[1750184040242,0.27035636,644.04,643.09,0.31099846]
[1750184040546,1.16078126,643.99,643.13,2.31403955]
[1750184040746,1.04868741,643.98,643.13,2.31403955]
[1750184040943,1.04868741,643.97,643.13,2.31403955]
[1750184041149,1.04868741,643.96,643.12,2.31403955]
[1750184041346,1.04868741,643.95,643.12,2.31403955]
[1750184041549,1.04868741,643.94,643.12,2.31403955]
[1750184041746,1.04868741,643.93,643.12,2.6250235]
[1750184041947,1.04868741,643.92,643.12,2.6250235]
[1750184042163,1.04868741,643.91,643.12,2.6250235]
[1750184042448,1.04868741,643.9,643.12,0.31098395]
[1750184042747,1.04868741,643.89,643.12,0.31098395]
[1750184042947,1.04868741,643.88,643.12,2.6250235]
[1750184043151,1.04868741,643.87,643.12,2.6250235]
[1750184043351,1.04868741,643.86,643.13,1.051]
[1750184043649,1.04868741,643.85,643.13,1.051]
[1750184043850,1.04868741,643.84,643.13,3.36503955]
[1750184044050,1.04868741,643.83,643.13,3.36503955]
[1750184044250,1.04868741,643.82,643.13,3.36503955]
[1750184044451,1.04868741,643.81,643.13,3.36503955]
[1750184044647,1.04868741,643.8,643.13,3.36503955]
[1750184044946,1.04868741,643.79,643.13,3.36503955]
[1750184045150,1.04868741,643.78,643.13,3.36503955]
[1750184045450,1.04868741,643.77,643.13,3.36503955]
[1750184045645,1.04868741,643.76,643.13,3.36503955]
[1750184045950,1.16078126,643.95,643.13,3.36503955]
[1750184045951,1.04868741,643.75,643.14,2.31403955]
[1750184046152,1.04868741,643.74,643.13,3.36503955]
[1750184046352,1.16078126,643.95,643.14,2.31403955]
[1750184046651,1.04943686,643.94,643.14,2.31403955]
[1750184046947,1.04943686,643.93,643.14,2.31403955]
[1750184047151,1.04943686,643.92,643.14,2.31403955]
[1750184047346,1.04943686,643.91,643.15,2.31403955]
[1750184047549,1.04943686,643.9,643.16,2.31403955]
[1750184047747,1.04943686,643.89,643.16,2.31403955]
[1750184047952,1.04943686,643.88,643.16,2.31403955]
[1750184048246,1.04943686,643.87,643.16,2.31403955]
[1750184048453,1.04943686,643.86,643.16,2.31403955]
[1750184048752,1.04943686,643.85,643.16,2.31403955]
[1750184048949,1.04943686,643.84,643.21,2.31403955]
[1750184049152,1.04943686,643.83,643.21,2.31403955]
[1750184049348,1.04943686,643.82,643.21,2.31403955]
[1750184049648,1.04943686,643.81,643.21,2.31403955]
[1750184049848,1.04943686,643.8,643.22,1.111]
[1750184050052,1.04943686,643.79,643.22,1.111]
[1750184050251,1.04943686,643.78,643.22,1.111]
[1750184050453,1.04943686,643.77,643.22,1.111]
[1750184050653,1.04943686,643.76,643.22,1.111]
[1750184050855,1.04943686,643.75,643.22,1.111]
[1750184051156,1.04943686,643.74,643.22,3.42503955]
[1750184051456,1.04943686,643.73,643.22,3.42503955]
[1750184051754,1.16078126,643.92,643.22,3.42503955]
[1750184051953,1.05012391,643.91,643.22,3.42503955]
[1750184052151,1.05012391,643.9,643.22,3.42503955]
[1750184052454,1.05012391,643.89,643.22,3.42503955]
[1750184052654,1.05012391,643.88,643.22,3.42503955]
[1750184052852,1.05012391,643.87,643.22,3.42503955]
[1750184053055,1.05012391,643.86,643.22,3.42503955]
[1750184053254,1.05012391,643.85,643.22,3.42503955]
[1750184053454,1.05012391,643.84,643.22,3.42503955]
[1750184053757,1.05012391,643.83,643.22,3.42503955]
[1750184054056,1.05012391,643.82,643.22,3.42503955]
[1750184054259,1.05012391,643.81,643.23,2.31403955]
[1750184054454,1.05012391,643.8,643.23,2.31403955]
[1750184054758,1.05012391,643.79,643.23,2.31403955]
[1750184054958,1.05012391,643.78,643.23,2.31403955]
[1750184055159,1.05012391,643.77,643.23,2.31403955]
[1750184055455,1.05012391,643.76,643.23,2.31403955]
[1750184055658,1.05012391,643.75,643.23,2.31403955]
[1750184055856,1.05012391,643.74,643.23,2.31403955]
[1750184056055,1.05012391,643.73,643.23,2.31403955]
[1750184056254,1.05012391,643.72,643.23,2.31403955]
[1750184056555,1.05012391,643.71,643.23,2.31403955]
[1750184056758,1.16078126,643.89,643.23,2.31403955]
[1750184056955,1.05073957,643.88,643.23,2.31403955]
[1750184057155,1.05073957,643.87,643.23,2.31403955]
[1750184057354,1.05073957,643.86,643.23,2.31403955]
[1750184057555,1.05073957,643.85,643.23,2.31403955]
[1750184057854,1.05073957,643.84,643.23,2.31403955]
[1750184058058,1.05073957,643.83,643.23,2.31403955]
[1750184058258,1.05073957,643.82,643.24,2.31403955]
[1750184058458,1.05073957,643.81,643.24,2.31403955]
[1750184058657,1.05073957,643.8,643.22,1.111]
[1750184058862,1.05073957,643.79,643.22,1.111]
[1750184059160,1.05073957,643.78,643.22,1.111]
[1750184059360,1.16078126,643.86,643.22,1.111]
[1750184059361,1.05073957,643.77,643.22,1.111]
[1750184059562,1.05073957,643.76,643.22,1.111]
[1750184059760,1.05073957,643.75,643.22,1.111]
[1750184059961,1.16078126,643.87,643.22,1.111]
[1750184059962,1.05073957,643.74,643.22,1.111]
[1750184060161,1.05073957,643.73,643.22,1.111]
[1750184060364,1.05073957,643.72,643.22,1.111]
[1750184060660,1.05073957,643.71,643.22,1.111]
[1750184060859,1.05073957,643.7,643.22,1.111]
[1750184061064,1.05073957,643.69,643.22,1.111]
[1750184061260,1.16078126,643.87,643.22,1.111]
[1750184061261,1.05073957,643.68,643.22,1.111]
[1750184061461,1.05073957,643.67,643.22,1.111]
[1750184061662,1.05073957,643.66,643.22,1.111]
[1750184061860,1.05073957,643.65,643.22,1.111]
[1750184062063,1.05073957,643.64,643.22,1.111]
[1750184062359,1.05073957,643.63,643.22,1.111]
[1750184062562,1.05073957,643.62,643.22,1.111]
[1750184062760,1.05073957,643.61,643.22,1.111]
[1750184062960,1.05073957,643.6,643.22,1.111]
[1750184063163,1.05073957,643.59,643.22,1.111]
[1750184063363,1.16078126,643.87,643.22,1.111]
[1750184063561,1.05091804,643.86,643.22,1.111]
[1750184063760,1.05091804,643.85,643.22,1.111]
[1750184063963,1.05091804,643.84,643.22,1.111]
[1750184064164,1.05091804,643.83,643.22,1.111]
[1750184064364,1.05091804,643.82,643.22,1.111]
[1750184064563,1.05091804,643.81,643.22,1.111]
[1750184064763,1.05091804,643.8,643.22,1.111]
[1750184064962,1.05091804,643.79,643.22,1.111]
[1750184065166,1.05091804,643.78,643.22,1.111]
[1750184065464,1.05091804,643.77,643.22,1.111]
[1750184065763,1.05091804,643.76,643.22,1.111]
[1750184065965,1.05091804,643.75,643.22,1.111]
[1750184066163,1.05091804,643.74,643.22,1.111]
[1750184066363,1.05091804,643.73,643.22,1.111]
[1750184066568,1.05091804,643.72,643.22,1.111]
[1750184066869,1.05091804,643.71,643.12,0.31098395]
[1750184067068,1.05091804,643.7,643.12,0.31098395]
[1750184067366,1.05091804,643.69,643.12,0.31098395]
[1750184067569,1.05091804,643.68,643.12,0.31098395]
[1750184067766,1.05091804,643.67,643.12,0.31098395]
[1750184067970,1.05091804,643.66,643.13,0.995]
[1750184068270,1.05091804,643.65,643.13,0.995]
[1750184068470,1.05091804,643.64,643.13,0.995]
[1750184068770,1.05091804,643.63,643.13,0.995]
[1750184069073,1.05091804,643.62,643.13,0.995]
[1750184069268,1.05091804,643.61,643.13,0.995]
[1750184069467,1.05091804,643.6,643.13,0.995]
[1750184069770,1.16078126,643.84,643.13,0.995]
[1750184069967,1.16078126,643.8,643.13,0.995]
[1750184070171,1.05047552,643.79,643.13,0.995]
[1750184070371,1.05047552,643.78,643.13,0.995]
[1750184070568,2.21220667,643.77,643.13,0.995]
[1750184070867,1.05039771,643.76,643.14,1.086]
[1750184071071,1.05039771,643.75,643.14,1.086]
[1750184071269,1.05039771,643.74,643.14,1.086]
[1750184071472,1.05039771,643.73,643.14,1.086]
[1750184071772,1.05039771,643.72,643.14,1.086]
[1750184071972,1.05039771,643.71,643.14,1.086]
[1750184072267,1.05039771,643.7,643.14,1.086]
[1750184072471,1.16180896,643.78,643.14,1.086]
[1750184072472,1.05039771,643.69,643.14,1.086]
[1750184072669,1.05039771,643.68,643.15,1.254]
[1750184072868,1.05039771,643.67,643.15,1.254]
[1750184073169,1.05039771,643.66,643.15,1.254]
[1750184073369,1.05039771,643.65,643.15,1.254]
[1750184073569,1.05039771,643.64,643.15,1.254]
[1750184073768,1.55008097,643.89,643.15,1.254]
[1750184073769,1.05039771,643.63,643.15,1.254]
[1750184074068,1.05039771,643.62,643.15,1.254]
[1750184074275,1.05039771,643.61,643.15,1.254]
[1750184074469,1.05039771,643.6,643.15,1.254]